[Event "Juniorallsvenskan 2019, Division 1 and 2"]
[Site "Molnlycke kulturhus, Biblioteksgatan 2, Molnlycke, Sweden"]
[Date "2019.11.24"]
[Round "4.8"]
[White "Nord, Alexander"]
[Black "Berglind, Axel"]
[Result "1/2-1/2"]
[TimeControl "90 minutes + 30 seconds per move from move one"]
[WhiteFideId "1738135"]
[BlackFideId "1720228"]
[WhiteElo "1845"]
[BlackElo "2062"]

1. d4 {[%clk 01:30:57]} {[%emt 00:00:02]} d5 {[%clk 01:29:36]} {[%emt
00:01:24]} 2. Nf3 {[%clk 01:31:14]} {[%emt 00:00:13]} Nf6 {[%clk 01:30:01]}
{[%emt 00:00:05]} 3. g3 {[%clk 01:31:36]} {[%emt 00:00:09]} e6 {[%clk
01:29:15]} {[%emt 00:01:16]} 4. Bg2 {[%clk 01:31:05]} {[%emt 00:01:00]} Be7
{[%clk 01:29:40]} {[%emt 00:00:05]} 5. O-O {[%clk 01:31:28]} {[%emt 00:00:06]}
O-O {[%clk 01:30:08]} {[%emt 00:00:02]} 6. c4 {[%clk 01:31:53]} {[%emt
00:00:05]} dxc4 {[%clk 01:30:35]} {[%emt 00:00:03]} 7. Qc2 {[%clk 01:31:57]}
{[%emt 00:00:25]} b5 {[%clk 01:30:55]} {[%emt 00:00:10]} 8. a4 {[%clk
01:23:20]} {[%emt 00:09:07]} b4 {[%clk 01:31:08]} {[%emt 00:00:18]} 9. Ne5
{[%clk 01:17:48]} {[%emt 00:06:02]} Qxd4 {[%clk 01:31:27]} {[%emt 00:00:11]} 10.
Nxc4 {[%clk 01:17:02]} {[%emt 00:01:15]} Nd5 {[%clk 01:30:03]} {[%emt
00:01:54]} 11. Rd1 {[%clk 01:04:49]} {[%emt 00:12:42]} Qc5 {[%clk 01:28:53]}
{[%emt 00:01:40]} 12. b3 {[%clk 00:58:42]} {[%emt 00:06:37]} Bf6 {[%clk
01:26:30]} {[%emt 00:02:54]} 13. Ra2 {[%clk 00:55:24]} {[%emt 00:03:47]} Nc6
{[%clk 01:23:45]} {[%emt 00:03:14]} 14. Bb2 {[%clk 00:46:46]} {[%emt 00:09:09]}
Ba6 {[%clk 01:20:09]} {[%emt 00:04:05]} 15. e4 {[%clk 00:37:02]} {[%emt
00:10:15]} Nb6 {[%clk 01:14:50]} {[%emt 00:05:49]} 16. Nbd2 {[%clk 00:35:08]}
{[%emt 00:02:24]} Bxb2 {[%clk 01:11:27]} {[%emt 00:03:53]} 17. Qxb2 {[%clk
00:33:31]} {[%emt 00:02:07]} Nxc4 {[%clk 01:11:38]} {[%emt 00:00:19]} 18. Nxc4
{[%clk 00:33:39]} {[%emt 00:00:21]} Bxc4 {[%clk 01:12:03]} {[%emt 00:00:06]} 19.
bxc4 {[%clk 00:34:03]} {[%emt 00:00:06]} Rad8 {[%clk 01:12:12]} {[%emt
00:00:22]} 20. Raa1 {[%clk 00:32:03]} {[%emt 00:02:30]} Rxd1+ {[%clk 01:09:12]}
{[%emt 00:03:30]} 21. Rxd1 {[%clk 00:32:31]} {[%emt 00:00:01]} Qxc4 {[%clk
01:08:58]} {[%emt 00:00:45]} 22. Rc1 {[%clk 00:32:24]} {[%emt 00:00:36]} Qd4
{[%clk 01:09:21]} {[%emt 00:00:06]} 23. Qe2 {[%clk 00:24:10]} {[%emt 00:08:44]}
Qb6 {[%clk 01:07:45]} {[%emt 00:02:07]} 24. e5 {[%clk 00:24:11]} {[%emt
00:00:30]} Nd4 {[%clk 01:08:10]} {[%emt 00:00:04]} 25. Qc4 {[%clk 00:23:40]}
{[%emt 00:01:01]} b3 {[%clk 01:07:05]} {[%emt 00:01:35]} 26. a5 {[%clk
00:23:38]} {[%emt 00:00:32]} b2 {[%clk 01:04:11]} {[%emt 00:03:24]} 27. Rb1
{[%clk 00:23:46]} {[%emt 00:00:21]} Qxa5 {[%clk 01:04:30]} {[%emt 00:00:12]} 28.
Qxd4 {[%clk 00:24:07]} {[%emt 00:00:09]} Rb8 {[%clk 01:04:56]} {[%emt
00:00:04]} 29. Be4 {[%clk 00:21:06]} {[%emt 00:03:31]} Qb6 {[%clk 01:00:57]}
{[%emt 00:04:29]} 30. Qd3 {[%clk 00:16:33]} {[%emt 00:05:03]} g6 {[%clk
00:58:41]} {[%emt 00:02:46]} 31. h4 {[%clk 00:15:58]} {[%emt 00:01:05]} Qc5
{[%clk 00:57:01]} {[%emt 00:02:09]} 32. Qf3 {[%clk 00:12:45]} {[%emt 00:03:43]}
Qxe5 {[%clk 00:56:33]} {[%emt 00:01:00]} 33. Rd1 {[%clk 00:12:49]} {[%emt
00:00:24]} Rb4 {[%clk 00:45:38]} {[%emt 00:11:26]} 34. Bb1 {[%clk 00:12:00]}
{[%emt 00:01:19]} Rd4 {[%clk 00:45:24]} {[%emt 00:00:44]} 35. Rxd4 {[%clk
00:11:56]} {[%emt 00:00:34]} Qxd4 {[%clk 00:45:52]} {[%emt 00:00:02]} 36. Qd3
{[%clk 00:12:15]} {[%emt 00:00:11]} Qb6 {[%clk 00:44:00]} {[%emt 00:02:22]} 37.
h5 {[%clk 00:11:43]} {[%emt 00:01:02]} a5 {[%clk 00:43:58]} {[%emt 00:00:32]}
38. h6 {[%clk 00:11:20]} {[%emt 00:00:53]} c5 {[%clk 00:44:15]} {[%emt
00:00:13]} 39. Qc3 {[%clk 00:11:18]} {[%emt 00:00:31]} Kf8 {[%clk 00:44:28]}
{[%emt 00:00:18]} 40. Qh8+ {[%clk 00:09:22]} {[%emt 00:02:26]} Ke7 {[%clk
00:44:53]} {[%emt 00:00:05]} 41. Qxh7 {[%clk 00:09:48]} {[%emt 00:00:04]} Qd6
{[%clk 00:41:48]} {[%emt 00:03:35]} 42. Bxg6 {[%clk 00:09:12]} {[%emt
00:01:06]} Qd1+ {[%clk 00:42:13]} {[%emt 00:00:05]} 43. Kg2 {[%clk 00:09:22]}
{[%emt 00:00:20]} Qd5+ {[%clk 00:42:23]} {[%emt 00:00:21]} 44. Kg1 {[%clk
00:08:27]} {[%emt 00:01:23]} Qd1+ {[%clk 00:42:49]} {[%emt 00:00:06]} 45. Kg2
{[%clk 00:07:48]} {[%emt 00:01:09]} Qd5+ {[%clk 00:43:14]} {[%emt 00:00:05]} 46.
f3 {[%clk 00:05:24]} {[%emt 00:02:54]} Qd2+ {[%clk 00:43:39]} {[%emt 00:00:05]}
47. Kh3 {[%clk 00:05:46]} {[%emt 00:00:08]} Kd6 {[%clk 00:43:24]} {[%emt
00:00:45]} 48. Bxf7 {[%clk 00:05:43]} {[%emt 00:00:33]} b1=Q {[%clk 00:42:11]}
{[%emt 00:01:43]} 49. Qxb1 {[%clk 00:06:00]} {[%emt 00:00:13]} Qxh6+ {[%clk
00:42:38]} {[%emt 00:00:04]} 50. Kg4 {[%clk 00:05:42]} {[%emt 00:00:46]} Qg7+
{[%clk 00:41:26]} {[%emt 00:01:43]} 51. Bg6 {[%clk 00:05:51]} {[%emt 00:00:21]}
Qd4+ {[%clk 00:41:38]} {[%emt 00:00:18]} 52. f4 {[%clk 00:06:04]} {[%emt
00:00:17]} a4 {[%clk 00:39:50]} {[%emt 00:02:19]} 53. Be4 {[%clk 00:05:41]}
{[%emt 00:00:52]} Qb4 {[%clk 00:40:03]} {[%emt 00:00:18]} 54. Qd1+ {[%clk
00:05:49]} {[%emt 00:00:19]} Ke7 {[%clk 00:40:21]} {[%emt 00:00:14]} 55. Bc6
{[%clk 00:05:45]} {[%emt 00:00:34]} a3 {[%clk 00:39:57]} {[%emt 00:00:55]} 56.
Qd7+ {[%clk 00:06:10]} {[%emt 00:00:05]} Kf8 {[%clk 00:39:26]} {[%emt
00:01:01]} 57. Qe8+ {[%clk 00:06:22]} {[%emt 00:00:18]} Kg7 {[%clk 00:39:50]}
{[%emt 00:00:06]} 58. Qe7+ {[%clk 00:06:46]} {[%emt 00:00:06]} Kh8 {[%clk
00:40:09]} {[%emt 00:00:11]} 59. Qf6+ {[%clk 00:06:41]} {[%emt 00:00:34]} Kh7
{[%clk 00:40:26]} {[%emt 00:00:13]} 60. Be8 {[%clk 00:04:24]} {[%emt 00:02:46]}
Qe4 {[%clk 00:40:28]} {[%emt 00:00:29]} 61. Qf7+ {[%clk 00:04:05]} {[%emt
00:00:50]} Kh8 {[%clk 00:39:44]} {[%emt 00:01:14]} 62. Qf6+ {[%clk 00:02:59]}
{[%emt 00:01:37]} Kh7 {[%clk 00:40:07]} {[%emt 00:00:06]} 63. Qf7+ {[%clk
00:02:37]} {[%emt 00:00:52]} Kh8 {[%clk 00:40:35]} {[%emt 00:00:02]} 1/2-1/2

[Event "Juniorallsvenskan 2019, Division 1 and 2"]
[Site "Molnlycke kulturhus, Biblioteksgatan 2, Molnlycke, Sweden"]
[Date "2019.11.24"]
[Round "4.9"]
[White "Pantzar, Milton"]
[Black "Storme, Isak"]
[Result "1/2-1/2"]
[TimeControl "90 minutes + 30 seconds per move from move one"]
[WhiteTitle "FM"]
[BlackTitle "FM"]
[WhiteFideId "1721003"]
[BlackFideId "1728113"]
[WhiteElo "2406"]
[BlackElo "2229"]

1. d4 {[%clk 01:30:54]} {[%emt 00:00:04]} d5 {[%clk 01:30:55]} {[%emt
00:00:05]} 2. c4 {[%clk 01:30:13]} {[%emt 00:01:11]} dxc4 {[%clk 01:28:59]}
{[%emt 00:02:27]} 3. e3 {[%clk 01:29:13]} {[%emt 00:01:30]} Nf6 {[%clk
01:29:20]} {[%emt 00:00:08]} 4. Bxc4 {[%clk 01:29:25]} {[%emt 00:00:18]} e6
{[%clk 01:29:39]} {[%emt 00:00:11]} 5. Nf3 {[%clk 01:29:28]} {[%emt 00:00:27]}
c5 {[%clk 01:29:53]} {[%emt 00:00:16]} 6. O-O {[%clk 01:28:18]} {[%emt
00:01:40]} Nc6 {[%clk 01:30:09]} {[%emt 00:00:14]} 7. dxc5 {[%clk 01:26:22]}
{[%emt 00:02:26]} Qxd1 {[%clk 01:30:29]} {[%emt 00:00:10]} 8. Rxd1 {[%clk
01:26:48]} {[%emt 00:00:04]} Bxc5 {[%clk 01:30:50]} {[%emt 00:00:09]} 9. b3
{[%clk 01:22:32]} {[%emt 00:04:46]} O-O {[%clk 01:27:09]} {[%emt 00:04:11]} 10.
Bb2 {[%clk 01:20:48]} {[%emt 00:02:14]} b6 {[%clk 01:24:42]} {[%emt 00:02:57]}
11. Nbd2 {[%clk 01:09:53]} {[%emt 00:11:26]} Be7 {[%clk 01:19:27]} {[%emt
00:05:44]} 12. Be2 {[%clk 01:04:00]} {[%emt 00:06:24]} Bb7 {[%clk 01:19:44]}
{[%emt 00:00:13]} 13. Nc4 {[%clk 01:02:18]} {[%emt 00:02:12]} Rfd8 {[%clk
01:12:43]} {[%emt 00:07:30]} 14. Kf1 {[%clk 00:48:26]} {[%emt 00:14:22]} Kf8
{[%clk 01:11:13]} {[%emt 00:02:00]} 15. Rxd8+ {[%clk 00:42:57]} {[%emt
00:06:00]} Rxd8 {[%clk 01:09:36]} {[%emt 00:02:07]} 16. Rc1 {[%clk 00:42:56]}
{[%emt 00:00:31]} Bc5 {[%clk 01:07:44]} {[%emt 00:02:22]} 17. a3 {[%clk
00:40:41]} {[%emt 00:02:45]} a5 {[%clk 01:07:49]} {[%emt 00:00:25]} 18. Ne1
{[%clk 00:36:53]} {[%emt 00:04:18]} Nd7 {[%clk 01:02:00]} {[%emt 00:06:19]} 19.
Nd3 {[%clk 00:36:24]} {[%emt 00:01:00]} Be7 {[%clk 01:01:14]} {[%emt 00:01:16]}
20. Bf3 {[%clk 00:30:02]} {[%emt 00:06:53]} Rc8 {[%clk 00:59:36]} {[%emt
00:02:08]} 21. Ke1 {[%clk 00:26:46]} {[%emt 00:03:46]} Nc5 {[%clk 00:58:09]}
{[%emt 00:01:57]} 22. Nxc5 {[%clk 00:25:59]} {[%emt 00:01:17]} Bxc5 {[%clk
00:58:30]} {[%emt 00:00:08]} 23. a4 {[%clk 00:21:15]} {[%emt 00:05:15]} Rc7
{[%clk 00:44:01]} {[%emt 00:14:58]} 24. Kd1 {[%clk 00:14:18]} {[%emt 00:07:28]}
f6 {[%clk 00:31:27]} {[%emt 00:13:04]} 25. Be4 {[%clk 00:10:13]} {[%emt
00:04:34]} f5 {[%clk 00:25:12]} {[%emt 00:06:46]} 26. Bxc6 {[%clk 00:09:14]}
{[%emt 00:01:30]} Bxc6 {[%clk 00:25:02]} {[%emt 00:00:40]} 27. f3 {[%clk
00:09:29]} {[%emt 00:00:14]} Bd5 {[%clk 00:23:48]} {[%emt 00:01:44]} 28. Ke2
{[%clk 00:07:55]} {[%emt 00:02:04]} g5 {[%clk 00:22:44]} {[%emt 00:01:33]} 29.
Nxa5 {[%clk 00:07:24]} {[%emt 00:01:02]} bxa5 {[%clk 00:22:43]} {[%emt
00:00:31]} 30. Rxc5 {[%clk 00:07:47]} {[%emt 00:00:07]} Rxc5 {[%clk 00:23:04]}
{[%emt 00:00:09]} 31. Ba3 {[%clk 00:08:15]} {[%emt 00:00:02]} Bxb3 {[%clk
00:23:23]} {[%emt 00:00:11]} 32. Bxc5+ {[%clk 00:08:42]} {[%emt 00:00:03]} Kf7
{[%clk 00:23:44]} {[%emt 00:00:08]} 33. Bb6 {[%clk 00:09:04]} {[%emt 00:00:08]}
Bxa4 {[%clk 00:24:08]} {[%emt 00:00:06]} 34. Bxa5 {[%clk 00:09:30]} {[%emt
00:00:04]} Be8 {[%clk 00:24:31]} {[%emt 00:00:07]} 35. Kf2 {[%clk 00:09:43]}
{[%emt 00:00:16]} 1/2-1/2

[Event "Juniorallsvenskan 2019, Division 1 and 2"]
[Site "Molnlycke kulturhus, Biblioteksgatan 2, Molnlycke, Sweden"]
[Date "2019.11.24"]
[Round "4.10"]
[White "Rasti, Arvin"]
[Black "Petersson, Baldur Teodor"]
[Result "1/2-1/2"]
[TimeControl "90 minutes + 30 seconds per move from move one"]
[BlackTitle "CM"]
[WhiteFideId "1741160"]
[BlackFideId "2309157"]
[WhiteElo "2206"]
[BlackElo "2216"]

1. Nf3 {[%clk 01:30:53]} {[%emt 00:00:05]} Nf6 {[%clk 01:30:55]} {[%emt
00:00:06]} 2. g3 {[%clk 01:31:10]} {[%emt 00:00:13]} g6 {[%clk 01:31:17]}
{[%emt 00:00:08]} 3. Bg2 {[%clk 01:31:31]} {[%emt 00:00:08]} Bg7 {[%clk
01:31:42]} {[%emt 00:00:05]} 4. O-O {[%clk 01:31:55]} {[%emt 00:00:06]} O-O
{[%clk 01:31:46]} {[%emt 00:00:26]} 5. d3 {[%clk 01:32:10]} {[%emt 00:00:15]}
d5 {[%clk 01:31:47]} {[%emt 00:00:29]} 6. Nbd2 {[%clk 01:32:18]} {[%emt
00:00:22]} c5 {[%clk 01:30:51]} {[%emt 00:01:26]} 7. e4 {[%clk 01:32:26]}
{[%emt 00:00:22]} Nc6 {[%clk 01:30:22]} {[%emt 00:00:59]} 8. Re1 {[%clk
01:32:25]} {[%emt 00:00:31]} e6 {[%clk 01:23:00]} {[%emt 00:07:52]} 9. c3
{[%clk 01:30:37]} {[%emt 00:02:18]} b6 {[%clk 01:16:50]} {[%emt 00:06:41]} 10.
exd5 {[%clk 01:15:54]} {[%emt 00:15:13]} exd5 {[%clk 01:17:09]} {[%emt
00:00:11]} 11. Nf1 {[%clk 01:15:32]} {[%emt 00:00:52]} Bb7 {[%clk 01:14:11]}
{[%emt 00:03:28]} 12. Bg5 {[%emt 00:03:15]} d4 {[%clk 01:09:16]} {[%emt
00:05:23]} 13. c4 {[%clk 01:11:42]} {[%emt 00:01:36]} h6 {[%clk 01:07:41]}
{[%emt 00:02:05]} 14. Bxf6 {[%clk 01:05:47]} {[%emt 00:06:25]} Bxf6 {[%clk
01:05:33]} {[%emt 00:02:37]} 15. a3 {[%clk 01:05:31]} {[%emt 00:00:46]} Qd7
{[%clk 01:00:29]} {[%emt 00:05:34]} 16. Rb1 {[%clk 01:00:15]} {[%emt 00:05:46]}
a5 {[%clk 00:59:29]} {[%emt 00:01:30]} 17. N1d2 {[%clk 00:58:36]} {[%emt
00:02:08]} Bg7 {[%clk 00:57:22]} {[%emt 00:02:37]} 18. Qb3 {[%clk 00:55:29]}
{[%emt 00:03:37]} Qc7 {[%clk 00:57:00]} {[%emt 00:00:52]} 19. Re2 {[%clk
00:54:48]} {[%emt 00:01:11]} Rfe8 {[%clk 00:54:40]} {[%emt 00:02:49]} 20. Rbe1
{[%clk 00:53:42]} {[%emt 00:01:36]} Kf8 {[%clk 00:53:48]} {[%emt 00:01:23]} 21.
Ne4 {[%clk 00:52:03]} {[%emt 00:02:10]} f5 {[%clk 00:49:48]} {[%emt 00:04:30]}
22. Ned2 {[%clk 00:51:19]} {[%emt 00:01:13]} Rxe2 {[%clk 00:50:00]} {[%emt
00:00:18]} 23. Rxe2 {[%clk 00:51:48]} {[%emt 00:00:02]} Re8 {[%clk 00:50:13]}
{[%emt 00:00:17]} 24. Rxe8+ {[%clk 00:48:16]} {[%emt 00:04:02]} Kxe8 {[%clk
00:50:22]} {[%emt 00:00:21]} 1/2-1/2

[Event "Juniorallsvenskan 2019, Division 1 and 2"]
[Site "Molnlycke kulturhus, Biblioteksgatan 2, Molnlycke, Sweden"]
[Date "2019.11.24"]
[Round "4.11"]
[White "Carlsson, Ludvig"]
[Black "Strom-Engdahl, Alexander"]
[Result "1-0"]
[TimeControl "90 minutes + 30 seconds per move from move one"]
[WhiteTitle "CM"]
[WhiteFideId "1727010"]
[BlackFideId "1741586"]
[WhiteElo "2146"]
[BlackElo "1940"]

1. c4 {[%clk 01:30:57]} {[%emt 00:00:01]} c5 {[%clk 01:29:58]} {[%emt
00:01:02]} 2. Nf3 {[%clk 01:29:40]} {[%emt 00:01:46]} Nf6 {[%clk 01:28:02]}
{[%emt 00:02:27]} 3. g3 {[%clk 01:29:58]} {[%emt 00:00:12]} g6 {[%clk
01:27:28]} {[%emt 00:01:04]} 4. b3 {[%clk 01:30:19]} {[%emt 00:00:10]} Bg7
{[%clk 01:25:16]} {[%emt 00:02:42]} 5. Bb2 {[%clk 01:30:40]} {[%emt 00:00:08]}
Nc6 {[%clk 01:24:44]} {[%emt 00:01:02]} 6. Bg2 {[%clk 01:30:39]} {[%emt
00:00:30]} O-O {[%clk 01:25:02]} {[%emt 00:00:12]} 7. O-O {[%clk 01:30:59]}
{[%emt 00:00:10]} d6 {[%clk 01:23:23]} {[%emt 00:02:10]} 8. Nc3 {[%clk
01:31:21]} {[%emt 00:00:08]} e5 {[%clk 01:20:23]} {[%emt 00:03:30]} 9. d3
{[%clk 01:31:44]} {[%emt 00:00:07]} h6 {[%clk 01:18:24]} {[%emt 00:02:29]} 10.
Nd2 {[%clk 01:31:26]} {[%emt 00:00:48]} Be6 {[%clk 01:18:33]} {[%emt 00:00:21]}
11. Nde4 {[%clk 01:31:48]} {[%emt 00:00:08]} Ne8 {[%clk 01:15:55]} {[%emt
00:03:08]} 12. Nd5 {[%clk 01:31:59]} {[%emt 00:00:19]} f5 {[%clk 01:14:53]}
{[%emt 00:01:32]} 13. Nec3 {[%clk 01:32:19]} {[%emt 00:00:10]} Qd7 {[%clk
01:14:05]} {[%emt 00:01:18]} 14. Qd2 {[%clk 01:25:46]} {[%emt 00:07:03]} Nc7
{[%clk 01:06:16]} {[%emt 00:08:20]} 15. Rab1 {[%clk 01:24:19]} {[%emt
00:01:56]} g5 {[%clk 01:03:53]} {[%emt 00:02:54]} 16. a3 {[%clk 01:24:24]}
{[%emt 00:00:25]} f4 {[%clk 01:01:35]} {[%emt 00:02:47]} 17. b4 {[%clk
01:24:06]} {[%emt 00:00:48]} Nd4 {[%clk 01:00:09]} {[%emt 00:01:56]} 18. Nxc7
{[%clk 01:19:22]} {[%emt 00:05:15]} Qxc7 {[%clk 00:59:28]} {[%emt 00:01:11]} 19.
bxc5 {[%clk 01:18:15]} {[%emt 00:01:37]} dxc5 {[%clk 00:57:57]} {[%emt
00:02:00]} 20. Nd5 {[%clk 01:18:32]} {[%emt 00:00:13]} Qd7 {[%clk 00:56:26]}
{[%emt 00:02:01]} 21. Bxd4 {[%clk 01:18:54]} {[%emt 00:00:09]} cxd4 {[%clk
00:56:16]} {[%emt 00:00:40]} 22. Rxb7 {[%clk 01:19:03]} {[%emt 00:00:21]} Qd6
{[%clk 00:53:12]} {[%emt 00:03:34]} 23. Nc7 {[%clk 01:17:25]} {[%emt 00:02:07]}
f3 {[%clk 00:52:48]} {[%emt 00:00:54]} 24. exf3 {[%clk 01:17:49]} {[%emt
00:00:06]} Bc8 {[%clk 00:52:41]} {[%emt 00:00:38]} 25. Nb5 {[%clk 01:16:48]}
{[%emt 00:01:30]} Qc5 {[%clk 00:51:16]} {[%emt 00:01:55]} 26. Rc7 {[%clk
01:16:49]} {[%emt 00:00:29]} Qb6 {[%clk 00:51:28]} {[%emt 00:00:18]} 27. f4
{[%clk 01:16:20]} {[%emt 00:00:58]} a6 {[%clk 00:50:39]} {[%emt 00:01:19]} 28.
Bxa8 {[%clk 01:15:09]} {[%emt 00:01:41]} axb5 {[%clk 00:50:41]} {[%emt
00:00:28]} 29. Bd5+ {[%clk 01:15:31]} {[%emt 00:00:09]} Kh8 {[%clk 00:50:30]}
{[%emt 00:00:41]} 30. Rc6 {[%clk 01:15:44]} {[%emt 00:00:17]} Qd8 {[%clk
00:48:22]} {[%emt 00:02:39]} 31. fxg5 {[%clk 01:16:01]} {[%emt 00:00:12]} hxg5
{[%clk 00:48:43]} {[%emt 00:00:08]} 32. Qe2 {[%clk 01:15:41]} {[%emt 00:00:49]}
1-0

[Event "Juniorallsvenskan 2019, Division 1 and 2"]
[Site "Molnlycke kulturhus, Biblioteksgatan 2, Molnlycke, Sweden"]
[Date "2019.11.24"]
[Round "4.12"]
[White "Lindholm, Gustav"]
[Black "Emmoth, Alfons"]
[Result "1/2-1/2"]
[TimeControl "90 minutes + 30 seconds per move from move one"]
[WhiteFideId "1736515"]
[BlackFideId "1718266"]
[WhiteElo "1922"]
[BlackElo "2066"]

1. Nf3 {[%clk 01:30:57]} {[%emt 00:00:02]} Nf6 {[%clk 01:30:53]} {[%emt
00:00:06]} 2. c4 {[%clk 01:31:21]} {[%emt 00:00:06]} g6 {[%clk 01:31:09]}
{[%emt 00:00:15]} 3. g3 {[%clk 01:31:46]} {[%emt 00:00:05]} Bg7 {[%clk
01:31:32]} {[%emt 00:00:06]} 4. Bg2 {[%clk 01:32:04]} {[%emt 00:00:12]} O-O
{[%clk 01:31:51]} {[%emt 00:00:11]} 5. Nc3 {[%clk 01:32:18]} {[%emt 00:00:16]}
d6 {[%clk 01:31:41]} {[%emt 00:00:41]} 6. O-O {[%clk 01:32:26]} {[%emt
00:00:22]} Nc6 {[%clk 01:31:04]} {[%emt 00:01:06]} 7. d3 {[%clk 01:32:18]}
{[%emt 00:00:39]} e5 {[%clk 01:30:19]} {[%emt 00:01:14]} 8. Rb1 {[%clk
01:32:08]} {[%emt 00:00:39]} a5 {[%clk 01:30:17]} {[%emt 00:00:32]} 9. a3
{[%clk 01:32:24]} {[%emt 00:00:15]} h6 {[%clk 01:29:16]} {[%emt 00:01:31]} 10.
b4 {[%clk 01:31:16]} {[%emt 00:01:38]} axb4 {[%clk 01:29:27]} {[%emt 00:00:19]}
11. axb4 {[%clk 01:31:38]} {[%emt 00:00:07]} Be6 {[%clk 01:29:37]} {[%emt
00:00:19]} 12. b5 {[%clk 01:29:54]} {[%emt 00:02:16]} Ne7 {[%clk 01:29:31]}
{[%emt 00:00:36]} 13. Bb2 {[%clk 01:26:22]} {[%emt 00:04:02]} Qd7 {[%clk
01:29:03]} {[%emt 00:00:58]} 14. Re1 {[%clk 01:24:07]} {[%emt 00:02:45]} Bh3
{[%clk 01:29:05]} {[%emt 00:00:28]} 15. Bh1 {[%clk 01:21:41]} {[%emt 00:02:56]}
Ng4 {[%clk 01:29:02]} {[%emt 00:00:33]} 16. Qb3 {[%clk 01:20:34]} {[%emt
00:01:36]} Kh7 {[%clk 01:23:48]} {[%emt 00:05:45]} 17. Ra1 {[%clk 01:10:05]}
{[%emt 00:10:59]} Rab8 {[%clk 01:22:54]} {[%emt 00:01:24]} 18. e3 {[%clk
00:53:50]} {[%emt 00:16:45]} f5 {[%clk 01:17:42]} {[%emt 00:05:42]} 19. Ne2
{[%clk 00:49:56]} {[%emt 00:04:24]} g5 {[%clk 01:08:51]} {[%emt 00:09:22]} 20.
d4 {[%clk 00:44:18]} {[%emt 00:06:08]} Ng6 {[%clk 01:00:09]} {[%emt 00:09:11]}
21. Qc2 {[%clk 00:42:00]} {[%emt 00:02:48]} Qf7 {[%clk 00:54:24]} {[%emt
00:06:15]} 22. c5 {[%clk 00:39:01]} {[%emt 00:03:30]} e4 {[%clk 00:48:04]}
{[%emt 00:06:50]} 23. Nd2 {[%clk 00:39:20]} {[%emt 00:00:11]} d5 {[%clk
00:48:29]} {[%emt 00:00:05]} 24. Ra3 {[%clk 00:24:13]} {[%emt 00:15:37]} Kh8
{[%clk 00:28:05]} {[%emt 00:20:55]} 1/2-1/2